bitfinex/quotes_SOLUSD_20240917
["timestamp","ask_amount","ask_price","bid_price","bid_amount"]
[1726549805751,0.2527995,131.76,131.75,69.00701134]
[1726549805960,0.2527995,131.76,131.75,77.71389919]
[1726549807661,0.2527995,131.76,131.75,47.71389919]
[1726549809755,0.2527995,131.76,131.75,39.00701134]
[1726549809958,0.2527995,131.76,131.75,47.71289333]
[1726549810148,0.2527995,131.76,131.75,47.71289331]
[1726549810452,0.2527995,131.76,131.75,77.71289331]
[1726549811159,0.2527995,131.76,131.75,47.71289331]
[1726549812559,0.2527995,131.76,131.75,47.71054402]
[1726549813455,0.2527995,131.76,131.75,39.00701134]
[1726549813854,0.2527995,131.76,131.75,47.7104419]
[1726549814163,0.2527995,131.76,131.75,77.7104419]
[1726549821374,0.2527995,131.76,131.75,77.7119251]
[1726549825672,0.2527995,131.76,131.75,97.7119251]
[1726549828454,0.2527995,131.76,131.75,97.71563181]
[1726549828856,0.2527995,131.76,131.75,121.49251581]
[1726549829078,0.2527995,131.8,131.79,26.5573]
[1726549829363,0.2527995,131.84,131.83,7.5855]
[1726549829554,0.2527995,131.84,131.83,20.02711134]
[1726549829749,0.2527995,131.84,131.83,7.5855]
[1726549830354,0.2527995,131.84,131.83,26.5493]
[1726549830557,0.2527995,131.84,131.83,38.99091134]
[1726549831554,2.5612561,131.87,131.83,38.99091134]
[1726549833373,6.4762995,131.88,131.84,20.02621134]
[1726549833579,6.4762995,131.88,131.84,20.02631134]
[1726549835654,6.4762995,131.88,131.84,7.5847]
[1726549836172,14.0590995,131.88,131.84,7.5847]
[1726549840061,14.0590995,131.88,131.84,20.02631134]
[1726549840981,7.8355995,131.88,131.84,20.02631134]
[1726549848881,7.8355995,131.88,131.84,7.5847]
[1726549849088,7.8355995,131.88,131.84,20.02631134]
[1726549850083,7.8355995,131.88,131.84,7.5847]
[1726549853494,7.8355995,131.88,131.84,20.02631134]
[1726549854803,0.2527995,131.88,131.85,7.5843]
[1726549855296,0.2527995,131.88,131.86,7.5837]
[1726549855471,0.2527995,131.88,131.87,7.5832]
[1726549855666,0.2527995,131.88,131.86,12.44161134]
[1726549855868,0.2527995,131.88,131.86,20.02521134]
[1726549856289,0.2527995,131.88,131.86,7.5836]
[1726549857270,0.2527995,131.88,131.85,38.98641134]
[1726549859201,0.2527995,131.88,131.86,7.5837]
[1726549862271,0.2527995,131.88,131.85,26.5447]
[1726549864484,0.2527995,131.88,131.86,7.5837]
[1726549865080,0.2527995,131.88,131.87,7.5832]
[1726549865585,0.2527995,131.88,131.86,7.5835]
[1726549868095,0.2527995,131.88,131.85,26.5449]
[1726549868291,7.8354995,131.88,131.84,7.5848]
[1726549868495,7.5833,131.87,131.83,16.3118]
[1726549868687,7.5839,131.86,131.82,26.5502]
[1726549869308,7.5839,131.86,131.8,28.12321134]
[1726549869309,7.5844,131.85,131.8,15.6816]
[1726549869516,23.776884,131.85,131.8,15.6816]
[1726549870177,23.776884,131.85,131.81,7.5865]
[1726549870387,31.361284,131.85,131.81,7.5865]
[1726549870686,23.776884,131.86,131.82,7.5859]
[1726549871116,31.360684,131.86,131.81,7.5865]
[1726549871304,31.360684,131.86,131.8,28.12321134]
[1726549871305,7.8353995,131.88,131.84,7.5848]
[1726549871498,7.8353995,131.88,131.84,20.02641134]
[1726549871802,7.8353995,131.88,131.83,38.99011134]
[1726549872113,7.8353995,131.88,131.83,26.5485]
[1726549873386,0.2527995,131.88,131.82,7.5859]
[1726549873816,7.5833,131.87,131.82,20.02751134]
[1726549874195,7.5833,131.87,131.83,7.5853]
[1726549874404,7.8354995,131.88,131.83,7.5853]
[1726549879402,7.8354995,131.88,131.84,7.5848]
[1726549883117,7.5834,131.87,131.83,7.5853]
[1726549888430,7.5834,131.87,131.82,38.99171134]
[1726549888829,7.5834,131.87,131.82,26.5501]
[1726549890005,7.5834,131.87,131.83,7.5854]
[1726549892630,7.5844,131.85,131.82,18.9643]
[1726549892834,7.5844,131.85,131.8,15.6816]
[1726549894129,7.5844,131.85,131.8,28.12321134]
[1726549894327,7.5844,131.85,131.81,7.5864]
[1726549894637,31.362184,131.84,131.79,26.5559]
[1726549894807,7.5855,131.83,131.79,18.9683]
[1726549896735,7.5855,131.83,131.79,26.556]
[1726549898117,2.5612,131.86,131.8,12.44161134]
[1726549898331,10.1454,131.86,131.81,7.5864]
[1726549899438,31.361284,131.85,131.81,7.5864]
[1726549899619,23.776884,131.85,131.79,18.9683]
[1726549899825,35.86023906,131.85,131.79,18.9683]
[1726549900135,7.5862,131.82,131.79,18.9683]
[1726549900506,7.5867,131.81,131.77,26.21751134]
[1726549900713,7.5862,131.82,131.78,30.0]
[1726549900932,7.5862,131.82,131.77,26.21751134]
[1726549901411,7.5862,131.82,131.77,13.7759]
[1726549901611,7.5862,131.82,131.78,7.5883]
[1726549904835,7.5855,131.83,131.79,7.5877]
[1726549906839,7.5851,131.84,131.8,7.5868]
[1726549907048,23.776884,131.83,131.8,7.5868]
[1726549907928,31.362384,131.83,131.79,7.5876]
[1726549909437,31.362384,131.83,131.78,26.5587]
[1726549912143,31.362384,131.83,131.79,7.5877]
[1726549920131,7.5855,131.83,131.79,7.5877]
[1726549920330,7.5851,131.84,131.8,7.5872]
[1726549932958,7.5856,131.83,131.79,7.5876]
[1726549934652,7.5861,131.82,131.78,26.5587]
[1726549936559,7.5861,131.82,131.79,13.31565153]
[1726549936761,7.5861,131.82,131.79,7.5878]
[1726549939362,23.776884,131.82,131.79,7.5878]
[1726549941741,7.5857,131.83,131.8,7.5872]
[1726549942952,31.361984,131.84,131.8,7.5872]
[1726549943554,23.776884,131.84,131.81,7.5866]
[1726549943753,11.5725646,131.86,131.82,7.586]
[1726549946469,7.5839,131.86,131.82,7.586]
[1726549947678,3.9886646,131.87,131.84,7.5848]
[1726549948777,11.8244641,131.88,131.84,7.5848]
[1726549948980,23.776884,131.87,131.84,7.5848]
[1726549949547,31.360084,131.87,131.83,7.5853]
[1726549962182,23.776884,131.87,131.84,7.5849]
[1726549962391,31.6123835,131.88,131.84,7.5849]
[1726549963265,31.6123835,131.88,131.83,7.5853]
[1726549971674,7.5833,131.87,131.83,7.5853]
[1726549973195,7.8355995,131.88,131.84,7.5849]
[1726549987185,0.2527995,131.88,131.83,7.5853]
[1726549987393,7.8355995,131.88,131.84,7.5847]
[1726549988903,0.2527995,131.88,131.84,7.5847]
[1726549989086,0.2527995,131.88,131.85,7.5842]
[1726549990095,7.8354995,131.88,131.84,26.5467]
[1726549998600,7.8354995,131.88,131.84,18.9619]
[1726549998601,0.2527995,131.88,131.84,18.9619]
[1726549999911,0.2527995,131.88,131.85,7.5842]
[1726550003019,7.8356995,131.88,131.84,18.9619]
[1726550003520,7.8356995,131.88,131.84,26.5464]
[1726550011622,7.8356995,131.88,131.85,7.5843]
[1726550014619,0.2527995,131.88,131.85,7.5843]
[1726550014830,0.2527995,131.88,131.86,7.5837]
[1726550018201,0.2527995,131.88,131.87,7.5832]
[1726550020816,0.2527995,131.88,131.83,18.9631]
[1726550021937,7.8354995,131.88,131.84,7.5845]
[1726550022306,7.8354995,131.88,131.85,7.5843]
[1726550023434,0.2527995,131.88,131.85,7.5843]
[1726550023814,0.2527995,131.88,131.86,7.5836]
[1726550026407,0.2527995,131.88,131.87,7.5832]
[1726550032736,0.2527995,131.88,131.86,7.5834]
[1726550034323,0.2527995,131.88,131.87,7.5832]
[1726550038236,0.2527995,131.88,131.86,7.5835]
[1726550041440,0.2527995,131.88,131.87,7.5832]
[1726550045642,0.2527995,131.88,131.86,7.5836]
[1726550045936,0.2527995,131.88,131.87,7.5832]
[1726550052237,0.2527995,131.88,131.87,20.02481134]
[1726550052742,0.2527995,131.88,131.87,7.5832]
[1726550053318,0.2527995,131.88,131.87,20.02481134]
[1726550068648,0.2527995,131.88,131.87,7.5832]
[1726550069041,0.2527995,131.88,131.86,7.5835]
[1726550069348,0.2527995,131.88,131.85,26.5446]
[1726550070147,31.1118835,131.89,131.85,26.5446]
[1726550078642,7.583,131.88,131.83,7.5851]
[1726550078847,7.583,131.88,131.82,18.9642]
[1726550080047,7.583,131.88,131.82,31.40581134]
[1726550080350,7.583,131.88,131.84,7.5848]
[1726550098452,7.5819,131.9,131.84,18.9615]
[1726550099350,7.5819,131.9,131.86,7.5837]
[1726550099566,23.776884,131.89,131.86,7.5837]
[1726550099968,7.5819,131.9,131.86,7.5837]
[1726550100375,31.357884,131.91,131.87,7.5831]
[1726550100564,7.581,131.91,131.87,7.5831]
[1726550101655,2.8139995,131.92,131.86,18.959]
[1726550101858,24.0296835,131.92,131.88,18.9562]
[1726550102066,0.2527995,131.92,131.89,7.5819]
[1726550103365,0.2527995,131.92,131.9,7.5814]
[1726550105889,0.2527995,131.92,131.91,7.5809]
[1726550108986,0.2527995,131.92,131.9,26.5343]
[1726550111567,0.2527995,131.92,131.9,18.953]
[1726550112179,0.2527995,131.92,131.9,26.5343]
[1726550113165,0.2527995,131.92,131.91,7.5809]
[1726550116572,0.2527995,131.92,131.91,20.02251134]
[1726550117386,0.2527995,131.92,131.91,50.02251134]
[1726550122696,0.2527995,131.92,131.91,37.5809]
[1726550126783,0.2527995,131.92,131.91,50.02251134]
[1726550138997,0.2527995,131.92,131.91,85.86691134]
[1726550148294,0.2527995,131.92,131.91,92.25641134]
[1726550149091,0.2527995,131.95,131.94,26.5272]
[1726550149321,0.2527995,131.95,131.94,68.96881134]
[1726550153708,0.2527995,131.95,131.94,56.5272]
[1726550154921,0.2527995,131.95,131.94,68.96881134]
[1726550157608,0.2527995,131.95,131.94,56.5272]
[1726550165517,0.2527995,131.95,131.94,68.96881134]
[1726550167419,0.2527995,131.95,131.94,56.5272]
[1726550168745,0.2527995,131.95,131.94,30.0]
[1726550169243,0.2527995,131.95,131.94,37.5792]
[1726550170642,0.2527995,131.95,131.94,7.5792]
[1726550171231,0.2527995,131.95,131.94,37.5792]
[1726550173346,0.2527995,131.95,131.94,50.02081134]
[1726550173726,0.2527995,131.95,131.94,51.53619525]
[1726550174626,0.2527995,131.95,131.94,50.02081134]
[1726550186346,0.2527995,131.95,131.94,37.5792]
[1726550186638,0.2527995,131.95,131.94,50.02081134]
[1726550192166,0.2527995,131.95,131.94,71.53266296]
[1726550193056,0.2527995,131.95,131.94,70.02081134]
[1726550195863,0.2527995,131.95,131.94,93.79769534]
[1726550196448,0.2527995,131.99,131.98,26.5191]
[1726550196763,0.2527995,131.99,131.98,38.96071134]
[1726550197476,0.2527995,131.99,131.98,68.96071134]
[1726550198472,0.2527995,131.99,131.98,56.5191]
[1726550204878,0.2527995,131.99,131.98,68.96071134]
[1726550209978,0.2527995,131.99,131.98,56.5191]
[1726550210362,0.2527995,131.99,131.98,30.0]
[1726550211356,0.2527995,131.99,131.96,7.5779]
[1726550215584,0.2527995,131.99,131.97,7.5772]
[1726550217681,0.2527995,131.99,131.98,7.5769]
[1726550219993,0.2527995,131.99,131.98,20.01851134]
[1726550223082,7.579599,132.03,131.99,7.576]
[1726550224985,0.005599,132.03,131.99,7.576]
[1726550227219,0.005599,132.03,132.0,7.5757]
[1726550231196,7.579599,132.03,131.99,26.5167]
[1726550231917,7.5747,132.02,131.99,18.9406]
[1726550235724,7.5755,132.01,131.97,24.0766]
[1726550236732,7.5747,132.02,131.97,24.0766]
[1726550239421,7.5747,132.02,131.98,7.5766]
[1726550254637,7.5758,132.0,131.97,16.4993]
[1726550254831,7.5763,131.99,131.97,16.4993]
[1726550255238,7.5759,132.0,131.97,16.4993]
[1726550258339,31.352184,132.01,131.97,24.0767]
[1726550259744,7.5747,132.02,131.98,7.5765]
[1726550266725,3.98426691,132.03,132.0,7.5757]
[1726550266923,11.55786691,132.04,132.0,7.5757]
[1726550267943,11.55786691,132.04,131.99,12.44161134]
[1726550267944,31.350984,132.03,131.99,7.5762]
[1726550277950,11.55786691,132.04,132.0,7.5755]
[1726550284562,7.5736,132.04,132.0,7.5755]
[1726550290169,11.55726691,132.05,132.01,7.5749]
[1726550290364,7.573,132.05,132.01,7.5749]
[1726550290743,23.776884,132.05,132.01,7.5749]
[1726550291364,31.349784,132.05,132.01,7.5749]
[1726550299575,7.5724,132.06,132.02,7.5742]
[1726550302180,7.5724,132.06,132.02,26.5106]
[1726550305176,23.776884,132.05,132.02,26.511]
[1726550306285,31.349784,132.05,132.02,18.9364]
[1726550307682,23.776884,132.05,132.02,18.9364]
[1726550307985,7.5725,132.06,132.02,26.5108]
[1726550308285,7.8302985,132.07,132.02,26.5108]
[1726550308486,7.8302985,132.07,132.03,7.5738]
[1726550318693,0.2583985,132.07,132.03,7.5738]
[1726550319889,0.2583985,132.07,132.04,7.5734]
[1726550328374,23.776884,132.06,132.03,23.0644]
[1726550328594,23.776884,132.06,132.03,15.4905]
[1726550328595,31.349184,132.06,132.03,15.4905]
[1726550329179,7.5729,132.05,132.02,18.9364]
[1726550330574,7.8302985,132.07,132.03,7.574]
[1726550330778,24.0352825,132.07,132.04,7.5733]
[1726550330980,31.6070825,132.07,132.03,24.1453]
[1726550337297,0.2583985,132.07,132.04,7.5733]
[1726550348609,7.8300985,132.07,132.03,24.1453]
[1726550348791,23.776884,132.06,132.03,24.1453]
[1726550353702,0.2583985,132.07,132.04,7.5733]
[1726550353906,24.0352825,132.07,132.04,7.5733]
[1726550355721,24.0352825,132.07,132.05,7.5728]
[1726550358319,24.0352825,132.07,132.04,26.5065]
[1726550358727,31.6069825,132.07,132.04,18.9333]
[1726550359092,24.0352825,132.07,132.04,26.5066]
[1726550359594,31.6070825,132.07,132.04,18.9333]
[1726550362604,24.0352825,132.07,132.04,26.5065]
[1726550365933,28.01954941,132.07,132.04,26.5065]
[1726550366830,24.0352825,132.07,132.04,26.5065]
[1726550378432,28.01954941,132.07,132.04,26.5065]
[1726550378637,28.01954941,132.07,132.02,7.574]
[1726550378819,28.01954941,132.07,132.01,25.0053]
[1726550378820,28.01954941,132.07,132.03,7.5739]
[1726550379133,35.59164941,132.07,132.03,7.5739]
[1726550380131,28.01954941,132.07,132.04,7.5734]
[1726550380809,28.01954941,132.07,132.03,26.5086]
[1726550380810,35.59124941,132.07,132.03,26.5086]
[1726550383631,7.573,132.05,132.02,15.69]
[1726550383824,23.776884,132.04,132.01,13.6436]
[1726550384328,23.776884,132.04,132.01,7.5751]
[1726550387522,31.350384,132.04,132.0,26.5142]
[1726550389117,7.5741,132.03,132.0,18.9386]
[1726550390239,23.776884,132.02,132.0,18.9386]
[1726550396748,31.351484,132.02,131.98,13.6849]
[1726550397129,31.351484,132.02,131.98,7.5767]
[1726550402051,23.776884,132.02,131.98,7.5767]
[1726550402431,23.776884,132.02,131.99,7.5762]
[1726550404733,7.5742,132.03,131.99,7.5762]
[1726550405431,3.98426691,132.06,131.99,18.9404]
[1726550405629,3.98426691,132.06,132.01,18.9373]
[1726550405829,7.5729,132.05,132.01,26.512]
[1726550406038,31.81456541,132.07,132.03,7.5739]
[1726550406241,0.2583985,132.07,132.03,7.5739]
[1726550406638,0.2583985,132.07,132.05,7.5725]
[1726550412172,0.2583985,132.07,132.06,7.5723]
[1726550413538,24.0352825,132.07,132.03,6.3394]
[1726550415353,24.0352825,132.07,132.04,7.5732]
[1726550418150,24.0352825,132.07,132.02,18.9354]
[1726550419245,31.6071825,132.07,132.03,7.5738]
[1726550423067,23.776884,132.05,132.02,26.5098]
[1726550426267,23.276884,132.05,132.02,26.5098]
[1726550428249,7.5734,132.04,132.0,23.1418]
[1726550428447,23.276884,132.05,132.0,15.5667]
[1726550428673,30.849784,132.05,132.01,7.5746]
[1726550432364,23.276884,132.05,132.0,15.5667]
[1726550433175,7.574,132.03,131.99,26.5156]
[1726550433877,7.5752,132.01,131.97,23.475]
[1726550434068,7.5757,132.0,131.96,26.5217]
[1726550434665,23.776884,131.99,131.96,18.9438]
[1726550436770,23.776884,131.99,131.96,26.5216]
[1726550444773,7.5753,132.01,131.97,7.5773]
[1726550445074,23.776884,132.0,131.97,7.5773]
[1726550448180,7.5748,132.02,131.98,7.5768]
[1726550448390,23.776884,132.01,131.98,7.5768]
[1726550448888,23.776884,132.02,131.95,7.5784]
[1726550449888,7.5761,132.0,131.96,7.578]
[1726550454387,7.5753,132.01,131.96,7.578]
[1726550454971,23.776884,132.0,131.96,7.578]
[1726550456604,31.352084,132.01,131.97,7.5769]
[1726550457370,7.5759,132.0,131.96,7.5778]
[1726550457572,23.776884,131.99,131.96,7.5778]
[1726550458372,7.5759,132.0,131.96,7.5778]
[1726550458870,7.5759,132.0,131.95,18.9461]
[1726550459078,7.5759,132.0,131.95,26.5245]
[1726550459279,7.5759,132.0,131.96,7.5779]
[1726550460386,7.5752,132.01,131.97,7.5771]
[1726550462606,7.5746,132.02,131.98,7.5768]
[1726550465878,31.351484,132.02,131.98,7.5767]
[1726550466095,23.776884,132.02,131.98,7.5767]
[1726550466885,31.351584,132.02,131.98,7.5767]
[1726550470892,7.5747,132.02,131.98,7.5767]
[1726550475582,7.5747,132.02,131.98,23.9561]
[1726550476192,7.5742,132.03,131.99,7.5762]
[1726550478810,7.5746,132.02,131.98,23.956]
[1726550479193,7.5742,132.03,131.99,7.5762]
[1726550485099,7.5742,132.03,131.98,23.956]
[1726550487715,7.5736,132.04,131.99,37.85011134]
[1726550487931,7.5736,132.04,132.0,7.5753]
[1726550488116,11.55726691,132.05,132.01,7.5751]
[1726550488622,7.573,132.05,132.01,7.5751]
[1726550491024,4.24266541,132.07,132.01,31.37901134]
[1726550491229,31.6071825,132.07,132.02,22.6911]
[1726550491407,31.6071825,132.07,132.02,35.13271134]
[1726550491811,7.8302985,132.07,132.02,35.13271134]
[1726550493620,7.5723,132.06,132.02,22.6911]
[1726550495722,7.8301985,132.07,132.03,7.5739]
[1726550508248,7.5724,132.06,132.02,22.6915]
[1726550508416,0.2583985,132.07,132.02,27.55861134]
[1726550509421,7.8302985,132.07,132.03,7.5739]
[1726550512147,0.2583985,132.07,132.04,7.5732]
[1726550517749,0.2583985,132.07,132.03,26.5083]
[1726550518049,0.2583985,132.07,132.03,38.94991134]
[1726550520249,0.2583985,132.07,132.04,7.5734]
[1726550525456,0.2583985,132.07,132.06,7.5723]
[1726550525653,0.2583985,132.07,132.05,26.5046]
[1726550525955,0.2583985,132.07,132.05,38.94621134]
[1726550526332,0.2583985,132.07,132.05,18.932]
[1726550545146,0.2583985,132.07,132.05,26.5048]
[1726550545867,0.2583985,132.07,132.06,20.01391134]
[1726550549777,0.2583985,132.07,132.06,41.44311134]
[1726550550082,0.2527995,132.11,132.08,18.9278]
[1726550550386,0.2527995,132.11,132.1,20.01161134]
[1726550551360,0.2527995,132.11,132.08,18.9278]
[1726550551779,0.2527995,132.11,132.08,26.4985]
[1726550552157,0.2527995,132.11,132.08,38.94011134]
[1726550555483,0.2527995,132.11,132.1,7.57]
[1726550555674,0.2527995,132.11,132.1,20.01161134]
[1726550557076,0.2527995,132.11,132.1,50.01161134]
[1726550558684,0.2527995,132.11,132.1,37.57]
[1726550569072,0.2527995,132.11,132.1,50.01161134]
[1726550571771,0.2527995,132.11,132.1,20.01161134]
[1726550573093,0.2527995,132.11,132.1,7.57]
[1726550574774,0.2527995,132.11,132.1,37.57]
[1726550576398,0.2527995,132.11,132.1,7.57]
[1726550582705,0.2527995,132.11,132.08,18.9278]
[1726550583009,23.776884,132.1,132.06,7.5721]
[1726550583180,23.776884,132.1,132.08,7.5711]
[1726550583377,24.0296835,132.11,132.09,7.5705]
[1726550583585,0.2527995,132.11,132.09,7.5705]
[1726550590217,0.2527995,132.11,132.07,18.9291]
[1726550590531,0.2527995,132.11,132.08,7.571]
[1726550590996,0.2527995,132.11,132.09,7.5705]
[1726550601449,0.2527995,132.11,132.1,7.57]
[1726550601627,0.2527995,132.11,132.09,26.4965]
[1726550604952,0.2527995,132.11,132.09,18.9261]
[1726550608341,0.2527995,132.11,132.09,26.4963]
[1726550608646,0.2527995,132.11,132.1,7.57]
[1726550609743,0.2527995,132.11,132.1,20.01161134]
[1726550614255,0.2527995,132.11,132.1,7.57]
[1726550614448,0.2527995,132.11,132.1,20.01161134]
[1726550628148,0.2527995,132.11,132.1,50.01161134]
[1726550629872,0.2527995,132.11,132.1,20.01161134]
[1726550630659,0.2527995,132.11,132.1,56.41111134]
[1726550631451,0.2527995,132.11,132.1,86.41111134]
[1726550634281,0.2527995,132.11,132.1,56.41111134]
[1726550636474,0.2527995,132.11,132.1,43.9695]
[1726550636786,0.2527995,132.11,132.1,56.41111134]
[1726550637369,0.2527995,132.11,132.1,86.41111134]
[1726550654182,0.2527995,132.11,132.1,56.41111134]
[1726550657192,0.2527995,132.11,132.1,73.9695]
[1726550657488,0.2527995,132.11,132.1,86.41111134]
[1726550669108,0.2527995,132.11,132.1,94.9346185]
[1726550670996,0.2527995,132.11,132.1,64.9346185]
[1726550671911,0.2527995,132.11,132.1,64.93470007]
[1726550674990,0.2527995,132.11,132.1,48.53520007]
[1726550675200,0.2527995,132.11,132.1,70.01161134]
[1726550675486,0.2527995,132.11,132.1,78.53688659]
[1726550675692,0.2527995,132.11,132.1,66.09527525]
[1726550675895,0.2527995,132.11,132.1,27.57]
[1726550676100,0.2527995,132.11,132.1,40.01161134]
[1726550680889,0.2527995,132.11,132.1,7.57]
[1726550682023,0.2527995,132.11,132.1,20.01161134]
[1726550686099,0.2527995,132.11,132.1,7.57]
[1726550698321,0.2527995,132.11,132.1,20.01161134]
[1726550701024,0.2527995,132.15,132.14,46.487]
[1726550701201,0.2527995,132.15,132.14,38.92861134]
[1726550701402,0.2527995,132.15,132.14,58.92861134]
[1726550701596,0.2527995,132.15,132.14,26.487]
[1726550702310,0.2527995,132.15,132.14,38.92861134]
[1726550703324,0.2527995,132.15,132.14,26.487]
[1726550708222,0.2527995,132.15,132.14,38.92861134]
[1726550713138,0.2527995,132.15,132.14,26.487]
[1726550713822,0.2527995,132.15,132.14,38.92861134]
[1726550715718,0.2527995,132.15,132.14,26.487]
[1726550715919,0.2527995,132.15,132.14,38.92861134]
[1726550724364,0.2527995,132.19,132.18,64.3062]
[1726550724635,0.2527995,132.19,132.18,38.92061134]
[1726550725246,0.2527995,132.19,132.18,26.479]
[1726550728438,0.2527995,132.19,132.15,12.44161134]
[1726550728439,0.2527995,132.19,132.15,18.9169]
[1726550728619,24.0296835,132.19,132.15,26.4839]
[1726550729621,24.0296835,132.19,132.16,7.5663]
[1726550732022,0.2527995,132.19,132.17,7.5658]
[1726550747155,0.2527995,132.19,132.16,7.5664]
[1726550751656,7.8175995,132.19,132.15,26.4839]
[1726550751944,23.776884,132.18,132.15,26.4839]
[1726550755141,23.776884,132.18,132.13,16.4717]
[1726550755338,28.01395041,132.19,132.12,18.921]
[1726550756335,23.776884,132.16,132.13,7.5681]
[1726550759346,23.776884,132.16,132.13,20.00971134]
[1726550761561,7.5655,132.18,132.14,7.5675]
[1726550761742,7.8177995,132.19,132.15,7.5671]
[1726550763341,23.776884,132.18,132.15,7.5671]
[1726550765673,31.342384,132.18,132.14,38.92811134]
[1726550767165,31.342384,132.18,132.14,26.4865]
[1726550781469,7.5661,132.17,132.14,18.919]
[1726550786067,7.5669,132.16,132.13,16.0141]
[1726550786267,31.344084,132.15,132.11,26.4916]
[1726550792890,23.776884,132.13,132.1,6.5124]
[1726550793185,23.776884,132.13,132.09,15.0092]
[1726550793186,7.5686,132.13,132.09,22.5796]
[1726550794181,7.5689,132.12,132.09,15.0092]
[1726550795783,23.776884,132.11,132.09,15.0092]
[1726550797392,23.776884,132.12,132.09,15.0092]
[1726550799883,31.345684,132.12,132.09,15.0092]
[1726550808192,7.5661,132.17,132.12,7.5687]
[1726550808375,7.5666,132.16,132.12,18.9213]
[1726550808577,7.5672,132.15,132.12,18.9213]
[1726550809875,23.776884,132.14,132.12,18.9213]
[1726550810084,23.776884,132.15,132.12,18.9213]
[1726550811901,23.776884,132.15,132.12,26.49]
[1726550813399,31.344484,132.15,132.11,6.0904]
[1726550813703,23.776884,132.15,132.11,6.0904]
[1726550814071,23.776884,132.15,132.11,13.6594]
[1726550816000,23.776884,132.15,132.12,7.5688]
[1726550817796,23.776884,132.15,132.11,13.6596]
[1726550818778,23.776884,132.15,132.13,7.568]
[1726550818994,23.776884,132.16,132.12,7.5687]
[1726550820596,31.343484,132.16,132.12,7.5687]
[1726550825914,7.5661,132.17,132.13,7.5682]
[1726550828717,7.5666,132.16,132.12,24.0867]
[1726550828896,7.5672,132.15,132.12,16.5181]
[1726550829587,7.5667,132.16,132.12,24.0869]
[1726550831112,31.5945835,132.19,132.15,7.567]
[1726550831298,24.0296835,132.19,132.13,31.36201134]
[1726550831493,7.5657,132.18,132.14,7.5675]
[1726550831805,23.776884,132.17,132.13,31.36201134]
[1726550832120,31.342884,132.17,132.13,38.92991134]
[1726550832295,31.342884,132.17,132.13,26.4883]
[1726550833321,31.342884,132.17,132.13,18.9204]
[1726550837916,7.5666,132.16,132.13,18.9204]
[1726550848931,31.342984,132.17,132.13,26.4886]
[1726550855145,0.2527995,132.19,132.15,18.9172]
[1726550855436,7.8179995,132.19,132.15,38.92571134]
[1726550855804,7.8179995,132.19,132.15,26.4841]
[1726550856236,0.2527995,132.19,132.18,7.5654]
[1726550856413,0.2527995,132.19,132.18,22.8941]
[1726550856928,0.2527995,132.19,132.18,29.3662]
[1726550860735,0.2527995,132.19,132.18,21.8008]
[1726550861441,0.2527995,132.19,132.15,12.44161134]
[1726550861442,0.2527995,132.19,132.15,7.5667]
[1726550863427,0.2527995,132.19,132.15,20.00831134]
[1726550863642,0.2527995,132.19,132.16,7.5663]
[1726550867551,0.2527995,132.19,132.18,7.5654]
[1726550873452,0.2527995,132.19,132.18,23.6335]
[1726550877332,0.2527995,132.19,132.18,36.07511134]
[1726550877531,0.2527995,132.19,132.18,42.57961134]
[1726550878751,0.2527995,132.19,132.18,30.138]
[1726550888235,0.2527995,132.19,132.18,42.57961134]
[1726550895378,0.2527995,132.19,132.18,30.138]
[1726550899564,0.2527995,132.19,132.18,42.57961134]
[1726550902074,0.2527995,132.19,132.18,30.138]
[1726550906462,0.2527995,132.19,132.18,7.5654]
[1726550909551,0.2527995,132.19,132.18,20.00701134]
[1726550913772,0.2527995,132.19,132.18,7.5654]
[1726550919353,0.2527995,132.19,132.18,20.00701134]
[1726550925787,0.2527995,132.19,132.18,7.5654]
[1726550935485,0.2527995,132.19,132.18,20.00701134]
[1726550960507,0.2527995,132.19,132.18,7.5654]
[1726550960680,0.2527995,132.19,132.18,20.00701134]
[1726550971929,0.2527995,132.19,132.18,7.5654]
[1726550972095,0.2527995,132.19,132.18,20.00701134]
[1726550975298,0.2527995,132.19,132.18,7.5654]